bitfinex-derivatives/quotes_BTCF0:USTF0_20240923
["timestamp","ask_amount","ask_price","bid_price","bid_amount"]
[1727109074332,0.441825,63268.0,63265.0,0.04713079]
[1727109075333,0.3628,63268.0,63265.0,0.12715879]
[1727109076038,0.079021,63271.0,63265.0,0.12715879]
[1727109076227,0.003,63268.0,63267.0,0.239026]
[1727109076729,0.439818,63274.0,63268.0,0.079024]
[1727109076948,0.439818,63274.0,63269.0,1.16]
[1727109077241,0.3608,63274.0,63269.0,1.16]
[1727109077428,0.079022,63270.0,63269.0,1.16]
[1727109077933,0.079018,63273.0,63269.0,1.16]
[1727109078432,0.3608,63274.0,63269.0,1.16]
[1727109078433,0.3608,63274.0,63269.0,1.161]
[1727109078633,0.3608,63274.0,63269.0,1.240022]
[1727109079328,0.3608,63274.0,63269.0,1.161]
[1727109079735,0.3608,63274.0,63269.0,1.240022]
[1727109079923,0.07902,63272.0,63269.0,0.001]
[1727109080431,0.3618,63274.0,63269.0,0.001]
[1727109080432,0.3608,63274.0,63269.0,0.001]
[1727109080620,0.079022,63270.0,63269.0,0.001]
[1727109080830,0.158044,63270.0,63269.0,0.001]
[1727109081137,0.079029,63264.0,63263.0,0.04713079]
[1727109081324,0.439829,63264.0,63263.0,0.04713079]
[1727109081734,0.079032,63263.0,63257.0,0.079038]
[1727109081934,0.07785721,63262.0,63257.0,0.079038]
[1727109082126,0.07785721,63263.0,63258.0,0.16]
[1727109082432,0.079026,63267.0,63262.0,0.16]
[1727109082433,0.07785721,63267.0,63262.0,0.16]
[1727109082758,0.07785721,63267.0,63264.0,0.079029]
[1727109084042,0.07785721,63266.0,63263.0,0.001]
[1727109084434,0.15688621,63264.0,63263.0,0.001]
[1727109084733,0.079033,63262.0,63256.0,0.139039]
[1727109084940,0.15690526,63262.0,63257.0,0.02471256]
[1727109085238,0.07787226,63261.0,63256.0,0.06]
[1727109085535,0.15234695,63265.0,63254.0,0.0578]
[1727109085536,0.51770529,63259.0,63254.0,0.079042]
[1727109085741,0.079037,63258.0,63256.0,0.02471367]
[1727109085950,0.079037,63258.0,63254.0,0.079042]
[1727109086327,0.079039,63256.0,63255.0,0.02471371]
[1727109086527,0.079053,63245.0,63244.0,0.00088]
[1727109086943,0.079053,63245.0,63242.0,0.01314072]
[1727109087238,0.219,63249.0,63239.0,0.36168]
[1727109087441,0.3608,63241.0,63233.0,0.00237218]
[1727109087638,0.439859,63241.0,63239.0,0.04734124]
[1727109087941,0.439859,63241.0,63238.0,0.04734124]
[1727109088143,0.3608,63241.0,63238.0,0.04734124]
[1727109089233,0.3568,63241.0,63238.0,0.04734124]
[1727109089431,0.3568,63241.0,63238.0,0.04834124]
[1727109089843,0.3578,63241.0,63238.0,0.05234124]
[1727109090241,0.001,63241.0,63240.0,0.25]
[1727109090645,0.001,63241.0,63240.0,0.329059]
[1727109091536,0.3608,63250.0,63240.0,1.45834124]
[1727109091742,0.3608,63250.0,63248.0,0.25]
[1727109092648,0.00237219,63258.0,63256.0,0.079039]
[1727109092939,0.00237219,63258.0,63257.0,0.079038]
[1727109093638,0.00237219,63258.0,63257.0,1.239038]
[1727109094735,0.079029,63265.0,63258.0,0.079037]
[1727109094929,0.079029,63265.0,63260.0,0.079034]
[1727109095134,0.079029,63265.0,63258.0,0.3608]
[1727109095838,0.079029,63264.0,63258.0,0.3608]
[1727109096037,0.3608,63263.0,63258.0,0.3608]
[1727109096241,0.079033,63261.0,63257.0,1.16392]
[1727109096439,0.079033,63261.0,63258.0,0.002]
[1727109096741,0.079033,63261.0,63258.0,0.003]
[1727109097447,0.079036,63259.0,63258.0,0.001]
[1727109097644,0.079033,63261.0,63258.0,0.001]
[1727109097831,0.079035,63260.0,63258.0,0.001]
[1727109098231,0.079035,63260.0,63257.0,1.16188]
[1727109098742,0.012,63261.0,63257.0,1.240037]
[1727109098937,0.012,63261.0,63257.0,1.411]
[1727109099137,0.018,63261.0,63260.0,0.079034]
[1727109099441,0.006,63261.0,63260.0,0.079034]
[1727109099636,0.006,63261.0,63258.0,0.3618]
[1727109099944,0.006,63261.0,63260.0,0.079034]
[1727109100343,0.3608,63263.0,63260.0,0.079034]
[1727109100643,0.3608,63263.0,63262.0,0.079032]
[1727109101145,0.3608,63268.0,63258.0,0.3608]
[1727109101336,0.3608,63268.0,63266.0,0.079026]
[1727109101642,0.3608,63268.0,63263.0,0.07903]
[1727109101951,0.3608,63268.0,63264.0,0.079029]
[1727109102534,0.439824,63268.0,63264.0,0.079029]
[1727109102834,0.0910283,63267.0,63264.0,0.079029]
[1727109103034,0.0910283,63266.0,63264.0,0.079029]
[1727109103234,0.02562266,63265.0,63264.0,0.079029]
[1727109103435,0.452464,63268.0,63260.0,0.079034]
[1727109103436,0.079029,63264.0,63260.0,0.079034]
[1727109103644,0.02562266,63263.0,63260.0,0.079034]
[1727109104034,0.09330139,63262.0,63259.0,0.1126]
[1727109104445,0.09330139,63262.0,63261.0,0.079033]
[1727109104835,0.09330139,63263.0,63262.0,0.079032]
[1727109105035,0.09330139,63263.0,63262.0,0.158064]
[1727109105239,0.013,63268.0,63267.0,0.079026]
[1727109105240,0.10631912,63268.0,63267.0,0.079026]
[1727109105542,0.07775701,63268.0,63267.0,0.408052]
[1727109105743,0.07775701,63270.0,63268.0,0.079024]
[1727109105937,0.07775701,63270.0,63269.0,0.25]
[1727109106148,0.07775701,63270.0,63269.0,0.329023]
[1727109106645,0.09331912,63276.0,63275.0,0.079016]
[1727109106851,0.02561694,63276.0,63275.0,0.25]
[1727109107044,0.0932926,63276.0,63275.0,0.329016]
[1727109107454,0.0932926,63276.0,63273.0,0.1142]
[1727109107756,0.11890954,63275.0,63273.0,0.1142]
[1727109108050,0.11890954,63274.0,63273.0,0.1142]
[1727109108251,0.11890954,63274.0,63272.0,0.3616]
[1727109108252,0.0932926,63274.0,63272.0,0.3616]
[1727109108452,0.0932926,63274.0,63273.0,0.079018]
[1727109108676,0.0932926,63274.0,63273.0,1.239018]
[1727109108844,0.02561694,63274.0,63273.0,1.161]
[1727109109041,0.02561694,63274.0,63273.0,1.240018]
[1727109109455,0.10463621,63274.0,63273.0,0.001]
[1727109109655,0.079027,63266.0,63263.0,0.0596]
[1727109109841,0.079027,63266.0,63263.0,0.138631]
[1727109110044,0.079023,63270.0,63263.0,0.0596]
[1727109110245,0.079023,63270.0,63266.0,0.079027]
[1727109110849,0.079023,63270.0,63267.0,0.079025]
[1727109111857,0.0566,63275.0,63263.0,0.07351949]
[1727109111858,0.079029,63265.0,63263.0,0.07351949]
[1727109112063,0.079029,63265.0,63263.0,0.0596]
[1727109112448,0.014,63270.0,63261.0,1.1608]
[1727109112449,0.079032,63262.0,63261.0,1.1608]
[1727109112648,0.079032,63262.0,63260.0,0.3608]
[1727109112843,0.079024,63268.0,63260.0,0.3608]
[1727109113066,0.07903,63264.0,63261.0,1.16]
[1727109114254,0.07903,63264.0,63263.0,0.001]
[1727109114953,0.079031,63263.0,63261.0,1.1618]
[1727109115148,0.079031,63263.0,63261.0,1.161]
[1727109115361,0.079032,63262.0,63261.0,1.161]
[1727109115661,0.079044,63252.0,63247.0,0.04734124]
[1727109115848,0.668,63262.0,63240.0,0.40814124]
[1727109115849,0.079051,63247.0,63240.0,0.40814124]
[1727109116054,0.439851,63247.0,63237.0,0.04734124]
[1727109116259,0.439851,63247.0,63233.0,0.08144018]
[1727109116453,0.439851,63247.0,63233.0,0.00237218]
[1727109117062,0.439851,63247.0,63246.0,0.02376506]
[1727109118370,0.450851,63247.0,63246.0,0.005]
[1727109118755,0.451851,63247.0,63246.0,0.001]
[1727109119360,0.3728,63247.0,63246.0,0.001]
[1727109119564,0.012,63247.0,63246.0,0.080052]
[1727109119856,0.012,63247.0,63246.0,0.330052]
[1727109122763,0.012,63247.0,63246.0,0.001]
[1727109122952,0.091051,63247.0,63246.0,0.001]
[1727109124671,0.170102,63247.0,63246.0,0.001]
[1727109124975,0.170102,63247.0,63240.0,0.01298924]
[1727109124976,0.158116,63241.0,63240.0,0.01298924]
[1727109125158,0.079067,63234.0,63233.0,0.3608]
[1727109125856,0.3608,63234.0,63230.0,0.01328152]
[1727109126061,0.3608,63234.0,63230.0,0.25]
[1727109126262,0.439867,63234.0,63230.0,0.079071]
[1727109126464,0.440867,63234.0,63233.0,0.004]
[1727109126970,0.439867,63234.0,63229.0,1.16084]
[1727109127170,0.079069,63233.0,63230.0,0.004]
[1727109128269,0.001,63234.0,63233.0,0.079068]
[1727109128567,0.3608,63241.0,63230.0,0.257]
[1727109128755,0.3608,63241.0,63237.0,0.25]
[1727109129160,0.439859,63241.0,63237.0,0.079063]
[1727109129369,0.3608,63241.0,63233.0,0.004]
[1727109129559,0.3608,63234.0,63233.0,0.004]
[1727109129774,0.3608,63234.0,63230.0,0.082071]
[1727109130067,0.3608,63234.0,63231.0,0.07907]
[1727109130266,0.3608,63234.0,63232.0,0.079069]
[1727109130775,0.439868,63234.0,63233.0,0.001]
[1727109131669,0.439867,63234.0,63233.0,0.005]
[1727109132469,0.448867,63234.0,63233.0,0.005]
[1727109132858,0.079072,63230.0,63229.0,1.1608]
[1727109133072,0.079072,63230.0,63229.0,1.16]
[1727109133265,0.3698,63234.0,63229.0,1.16]
[1727109133461,0.079069,63233.0,63229.0,1.239073]
[1727109134765,0.079069,63233.0,63232.0,0.16]
[1727109134968,0.3708,63234.0,63232.0,0.16]
[1727109135170,0.3608,63234.0,63233.0,0.079068]
[1727109135373,0.3608,63234.0,63233.0,0.138568]
[1727109135675,0.3608,63234.0,63233.0,0.193668]
[1727109135881,0.0037,63247.0,63233.0,0.193668]
[1727109135882,0.443551,63247.0,63233.0,0.1146]
[1727109136064,0.443551,63247.0,63239.0,0.16]
[1727109136065,0.439851,63247.0,63239.0,0.16]
[1727109136265,0.079052,63246.0,63242.0,0.079057]
[1727109136575,0.3608,63247.0,63243.0,0.079055]
[1727109137078,0.439852,63247.0,63243.0,0.079055]
[1727109138172,0.439852,63247.0,63240.0,0.0574]
[1727109138173,0.440852,63247.0,63244.0,0.079054]
[1727109138479,0.453852,63247.0,63244.0,0.079054]
[1727109138776,0.3778,63247.0,63244.0,0.079054]
[1727109139077,0.079054,63245.0,63240.0,0.0574]
[1727109139273,0.3608,63241.0,63240.0,0.136459]
[1727109139665,0.079063,63237.0,63234.0,0.079067]
[1727109139866,0.3608,63235.0,63233.0,0.1146]
[1727109140065,0.3608,63235.0,63233.0,0.12788763]
[1727109140373,0.3608,63235.0,63234.0,0.079067]
[1727109140563,0.3608,63235.0,63234.0,0.239067]
[1727109140970,0.07906,63240.0,63235.0,0.079065]
[1727109141283,0.07906,63240.0,63234.0,0.16]
[1727109141284,0.07906,63240.0,63236.0,0.079064]
[1727109141988,0.07906,63240.0,63233.0,0.12788763]
[1727109141989,0.079061,63239.0,63233.0,0.20695563]
[1727109142167,0.3608,63234.0,63233.0,0.20695563]
[1727109143478,0.3618,63234.0,63233.0,0.20695563]
[1727109144168,0.3718,63234.0,63233.0,0.20695563]
[1727109145061,0.3618,63234.0,63233.0,0.20695563]
[1727109145266,0.3728,63234.0,63233.0,0.20695563]
[1727109146363,0.3718,63234.0,63233.0,0.20695563]
[1727109146768,0.3718,63234.0,63233.0,0.15185563]
[1727109146970,0.3728,63234.0,63233.0,0.15185563]
[1727109147377,0.3618,63234.0,63233.0,0.15185563]
[1727109147576,0.3718,63234.0,63233.0,0.07278763]
[1727109148175,0.440867,63234.0,63233.0,0.1068592]
[1727109148382,0.079068,63233.0,63232.0,0.0473592]
[1727109148575,0.3728,63234.0,63231.0,0.0473592]
[1727109148876,0.3728,63234.0,63230.0,0.1039592]
[1727109149083,0.079069,63232.0,63230.0,0.1039592]
[1727109149575,0.079069,63232.0,63230.0,0.0566]
[1727109150169,0.079069,63232.0,63230.0,0.0576]
[1727109150980,0.01,63233.0,63230.0,0.0576]
[1727109151179,0.01,63233.0,63232.0,0.04736063]
[1727109151385,0.01,63233.0,63231.0,0.28643063]
[1727109151681,0.008,63232.0,63231.0,0.28643063]
[1727109152265,0.008,63232.0,63231.0,0.23907]
[1727109152470,0.008,63232.0,63231.0,0.20737665]
[1727109152679,0.008,63232.0,63231.0,0.16]
[1727109153176,0.008,63232.0,63231.0,0.20737665]
[1727109153478,0.008,63232.0,63231.0,0.16]
[1727109153985,0.009,63233.0,63231.0,0.16]
[1727109154174,0.009,63233.0,63232.0,0.079069]
[1727109154682,0.17601198,63248.0,63233.0,0.079068]
[1727109154683,0.07771588,63245.0,63233.0,0.079068]
[1727109154886,0.07771588,63252.0,63244.0,0.16]
[1727109155077,0.079046,63251.0,63244.0,0.20738483]
[1727109155272,0.079047,63250.0,63244.0,0.20738483]
[1727109155585,0.3608,63248.0,63243.0,0.04738483]
[1727109155783,0.3608,63248.0,63242.0,0.04738483]
[1727109156481,0.43985,63248.0,63241.0,0.24244183]
[1727109156974,0.3608,63242.0,63241.0,0.195057]
[1727109157174,0.3608,63242.0,63241.0,0.24244183]
[1727109157475,0.09005,63248.0,63242.0,0.079057]
[1727109157476,0.079051,63247.0,63242.0,0.079057]
[1727109158974,0.3718,63248.0,63241.0,0.12873156]
[1727109159380,0.3708,63248.0,63246.0,0.079052]
[1727109159586,0.3708,63248.0,63247.0,0.079051]
[1727109159886,0.093051,63247.0,63245.0,0.04738483]
[1727109160082,0.093051,63247.0,63241.0,0.19185322]
[1727109160083,0.014,63247.0,63241.0,0.11901639]
[1727109160288,0.079055,63244.0,63241.0,0.01273156]
[1727109160477,0.079055,63244.0,63238.0,0.079061]
[1727109160478,0.439857,63242.0,63238.0,0.04738483]
[1727109160672,0.3608,63242.0,63237.0,0.04738483]
[1727109160879,0.079062,63239.0,63237.0,0.04738483]
[1727109161187,0.079062,63239.0,63235.0,0.276]
[1727109161383,0.3608,63242.0,63235.0,0.276]
[1727109161587,0.3608,63242.0,63240.0,0.16]
[1727109161972,0.079058,63241.0,63235.0,0.36815916]
[1727109162284,0.3608,63242.0,63240.0,0.16]
[1727109162491,0.3608,63242.0,63241.0,0.079058]
[1727109162991,0.3608,63242.0,63241.0,0.1037758]
[1727109163287,0.079059,63240.0,63238.0,0.04738483]
[1727109163582,0.013,63239.0,63236.0,0.079064]
[1727109163794,0.013,63239.0,63233.0,0.04738483]
[1727109163974,0.013,63239.0,63230.0,0.0566]
[1727109163975,0.439867,63234.0,63230.0,0.0566]
[1727109164385,0.3608,63234.0,63232.0,0.16]
[1727109165093,0.3608,63234.0,63232.0,0.239069]
[1727109165278,0.3688,63234.0,63233.0,0.079068]
[1727109165472,0.3688,63234.0,63232.0,0.16]
[1727109165677,0.447867,63234.0,63232.0,0.16]
[1727109165878,0.3688,63234.0,63232.0,0.16]
[1727109166278,0.3688,63234.0,63233.0,0.079068]
[1727109166576,0.3688,63234.0,63233.0,0.10378901]
[1727109166777,0.3688,63234.0,63233.0,0.10378891]
[1727109166976,0.3708,63234.0,63233.0,0.10378891]
[1727109167288,0.3718,63234.0,63233.0,0.10378891]
[1727109167596,0.3708,63234.0,63233.0,0.10378891]
[1727109167893,0.3738,63234.0,63233.0,0.02472067]
[1727109168078,0.3738,63234.0,63233.0,0.23207401]
[1727109168478,0.3738,63234.0,63233.0,0.20735334]
[1727109169589,0.3738,63234.0,63233.0,0.16]
[1727109171190,0.3738,63234.0,63233.0,0.20735937]
[1727109171585,0.3738,63234.0,63233.0,0.28642737]
[1727109171789,0.3738,63234.0,63233.0,0.239068]
[1727109172277,0.3738,63234.0,63233.0,0.28642794]
[1727109172679,0.3738,63234.0,63233.0,0.239068]
[1727109173100,0.3738,63234.0,63233.0,0.28642817]
[1727109173399,0.0037,63246.0,63233.0,1.23444]
[1727109173580,0.36244,63247.0,63232.0,0.43970208]
[1727109173581,0.3608,63247.0,63241.0,0.239057]
[1727109173895,0.3608,63247.0,63242.0,0.0598]
[1727109174587,0.079054,63245.0,63242.0,0.0598]
[1727109174894,0.011,63246.0,63242.0,0.0598]
[1727109175082,0.011,63246.0,63242.0,0.138856]
[1727109175284,0.3748,63247.0,63242.0,0.0598]
[1727109175588,0.079053,63245.0,63242.0,0.0598]
[1727109176398,0.3848,63247.0,63242.0,0.0598]
[1727109176596,0.3748,63247.0,63242.0,0.0608]
[1727109176899,0.011,63245.0,63244.0,0.239054]
[1727109177800,0.007,63246.0,63244.0,1.399054]
[1727109178000,0.018,63247.0,63244.0,1.399054]
[1727109178200,0.018,63247.0,63244.0,1.44641061]
[1727109178498,0.018,63247.0,63245.0,0.079053]
[1727109178684,0.018,63247.0,63246.0,0.079052]
[1727109179797,0.007,63247.0,63246.0,0.079052]
[1727109180190,0.079046,63251.0,63246.0,0.079052]
[1727109180591,0.014,63247.0,63246.0,0.001]
[1727109181105,0.028,63247.0,63246.0,0.002]
[1727109181487,0.028,63247.0,63246.0,0.081052]
[1727109182196,0.028,63247.0,63246.0,0.12839194]
[1727109182394,0.028,63247.0,63246.0,0.081052]
[1727109183108,0.0079,63271.0,63262.0,0.079032]
[1727109183402,0.0037,63277.0,63269.0,0.079022]
[1727109183600,0.0559,63278.0,63270.0,1.399021]
[1727109183806,0.0559,63278.0,63271.0,0.07902]
[1727109184100,0.0559,63278.0,63275.0,0.079015]
[1727109184511,0.0559,63278.0,63274.0,0.16]
[1727109184702,0.0559,63278.0,63273.0,0.079018]
[1727109184703,0.0649,63278.0,63273.0,0.079018]
[1727109184914,0.0649,63278.0,63272.0,0.0595]
[1727109185203,0.0649,63278.0,63277.0,0.079013]
[1727109185204,0.023,63278.0,63277.0,0.079013]
[1727109185407,0.023,63278.0,63274.0,0.16]
[1727109186008,0.023,63278.0,63272.0,0.0595]
[1727109186197,0.3608,63275.0,63271.0,0.001]
[1727109186805,0.3608,63275.0,63272.0,0.001]
[1727109187104,0.3608,63275.0,63274.0,0.001]
[1727109187505,0.3608,63275.0,63272.0,0.001]
[1727109187692,0.057,63274.0,63271.0,0.002]
[1727109188103,0.3608,63281.0,63280.0,0.079009]
[1727109188298,0.3608,63281.0,63280.0,0.239009]
[1727109189911,0.3668,63281.0,63280.0,0.240009]
[1727109190113,0.3608,63289.0,63280.0,0.162]
[1727109190418,0.3608,63289.0,63288.0,0.16]
[1727109190601,0.3608,63289.0,63281.0,0.0598]
[1727109190602,0.3608,63289.0,63284.0,0.16]
[1727109190807,0.3608,63289.0,63284.0,0.239003]
[1727109191115,0.3608,63289.0,63284.0,0.16]
[1727109191307,0.3638,63289.0,63284.0,0.16]
[1727109192002,0.3638,63289.0,63278.0,0.3608]
[1727109192003,0.12458927,63285.0,63282.0,0.16]
[1727109192311,0.1603849,63284.0,63282.0,0.16]
[1727109192499,0.12458927,63285.0,63282.0,0.239007]
[1727109192500,0.1603849,63283.0,63282.0,0.239007]
[1727109193012,0.1082841,63283.0,63282.0,0.239007]
[1727109193313,0.08578965,63283.0,63282.0,0.714087]
[1727109193511,0.02561136,63283.0,63282.0,0.63508]
[1727109193715,0.001,63285.0,63282.0,1.874087]
[1727109193904,0.11195786,63299.0,63284.0,0.079004]
[1727109194106,0.00164,63301.0,63298.0,0.16]
[1727109194412,0.0567,63308.0,63300.0,0.16]
[1727109194616,0.3608,63309.0,63308.0,0.078975]
[1727109194813,0.12458927,63315.0,63308.0,0.078975]
[1727109195112,0.06624507,63314.0,63313.0,0.16]
[1727109195317,0.36244,63316.0,63313.0,0.16]
[1727109195511,0.3608,63316.0,63313.0,0.238968]
[1727109195704,0.3608,63316.0,63314.0,1.16]
[1727109196717,0.3628,63316.0,63314.0,1.16]
[1727109196906,0.3628,63316.0,63314.0,1.238966]
[1727109197101,0.3628,63316.0,63315.0,0.078966]
[1727109197409,0.3648,63316.0,63315.0,0.078966]
[1727109198015,0.3648,63316.0,63314.0,1.16288]
[1727109198229,0.3648,63316.0,63315.0,0.001]
[1727109198914,0.004,63316.0,63315.0,0.079966]
[1727109199104,0.002,63316.0,63315.0,0.079966]
[1727109199310,0.003,63316.0,63315.0,0.080966]
[1727109199706,0.001,63316.0,63315.0,0.079966]
[1727109200514,0.001,63316.0,63315.0,0.554766]
[1727109201008,0.001,63316.0,63315.0,0.002]
[1727109201212,1.2348,63316.0,63294.0,0.1637]
[1727109201401,0.3608,63306.0,63300.0,0.16236955]
[1727109201604,0.3608,63306.0,63304.0,0.16]
[1727109201809,0.3608,63306.0,63304.0,0.238979]
[1727109202412,0.3608,63306.0,63305.0,0.078978]
[1727109202801,0.3608,63310.0,63306.0,0.078977]
[1727109203605,0.003,63306.0,63305.0,0.001]
[1727109203808,0.003,63306.0,63305.0,0.079978]
[1727109204118,0.002,63306.0,63305.0,0.079978]
[1727109204321,0.002,63306.0,63305.0,0.078978]
[1727109204625,0.003,63310.0,63309.0,0.078973]
[1727109204815,0.003,63310.0,63309.0,0.328973]
[1727109205315,0.3608,63318.0,63309.0,0.25]
[1727109205513,0.3608,63318.0,63317.0,0.328963]
[1727109206406,0.3608,63318.0,63317.0,0.25]
[1727109206607,0.3628,63318.0,63309.0,0.001]
[1727109206809,0.3628,63318.0,63311.0,0.07897]
[1727109207017,0.12350914,63317.0,63312.0,0.13696114]
[1727109207220,0.12350914,63316.0,63312.0,0.13696114]
[1727109207518,0.12350914,63315.0,63307.0,0.25]
[1727109207728,0.078969,63313.0,63307.0,0.25]
[1727109208022,0.05715246,63312.0,63309.0,0.001]
[1727109208318,0.05715246,63311.0,63309.0,0.001]
[1727109208520,0.12150317,63310.0,63304.0,0.25]
[1727109208704,0.12356236,63307.0,63304.0,0.25]
[1727109208907,0.12356236,63307.0,63294.0,0.078992]
[1727109208908,0.078983,63302.0,63294.0,0.078992]
[1727109209109,0.078983,63302.0,63291.0,1.41]
[1727109209110,0.10458682,63301.0,63291.0,1.41]
[1727109209311,0.4148032,63301.0,63291.0,1.238995]
[1727109209507,0.34924084,63301.0,63291.0,1.41]
[1727109209725,0.34924084,63301.0,63295.0,0.07899]
[1727109210225,0.34924084,63301.0,63300.0,0.00336955]
[1727109210927,0.4093726,63301.0,63300.0,0.00336955]
[1727109211111,0.14141217,63301.0,63300.0,0.00336955]
[1727109211423,0.07919456,63301.0,63300.0,0.00336955]
[1727109211723,0.23600484,63301.0,63300.0,0.00336955]
[1727109211919,0.21342566,63301.0,63300.0,0.00336955]
[1727109212514,0.21542566,63301.0,63300.0,0.00336955]
[1727109212722,0.23702334,63301.0,63300.0,0.00336955]
[1727109212923,0.37025444,63301.0,63300.0,0.00336955]
[1727109213320,0.21342566,63301.0,63300.0,0.00236955]
[1727109213522,0.21542566,63301.0,63300.0,0.00336955]
[1727109214219,0.21542566,63301.0,63300.0,0.08235355]
[1727109214426,0.25468587,63301.0,63300.0,0.08235355]
[1727109214613,0.21542566,63301.0,63300.0,0.08235355]
[1727109215013,0.3608,63310.0,63300.0,0.44315355]
[1727109215218,0.3608,63310.0,63309.0,0.328973]
[1727109215940,0.00237008,63320.0,63315.0,0.078966]
[1727109216117,0.00237008,63320.0,63315.0,0.328966]
[1727109216621,0.00237008,63320.0,63316.0,1.16]
[1727109218524,0.00237008,63320.0,63319.0,0.078961]
[1727109218821,0.3608,63329.0,63319.0,0.3608]
[1727109219014,0.3608,63329.0,63321.0,0.25]
[1727109219210,0.078944,63333.0,63322.0,1.16]
[1727109219709,0.1204,63335.0,63322.0,1.16]
[1727109219910,0.0593,63335.0,63333.0,0.25]
[1727109221324,0.3608,63336.0,63333.0,0.251]
[1727109221515,0.3608,63336.0,63334.0,0.078942]
[1727109222020,0.37279432,63335.0,63325.0,0.3608]
[1727109222220,0.12424913,63327.0,63326.0,0.078952]
[1727109222423,0.14984312,63327.0,63326.0,0.328952]
[1727109222630,0.14984312,63327.0,63326.0,1.402672]
[1727109222921,0.14486856,63327.0,63326.0,1.402672]
[1727109223117,0.08078695,63327.0,63326.0,1.402672]
[1727109223319,0.08078695,63327.0,63326.0,0.802672]
[1727109223320,0.14243745,63327.0,63326.0,0.802672]
[1727109223523,0.14243745,63327.0,63326.0,0.803672]
[1727109224019,0.14243745,63327.0,63326.0,1.403672]
[1727109224223,0.12424913,63330.0,63329.0,0.078948]
[1727109224422,0.12424913,63331.0,63330.0,0.078947]
[1727109224621,0.12424913,63332.0,63331.0,0.078946]
[1727109224824,0.12424913,63332.0,63331.0,0.328946]
[1727109225026,0.12424913,63335.0,63333.0,0.078943]
[1727109225214,0.12424913,63335.0,63327.0,0.25]
[1727109225525,0.12424913,63333.0,63327.0,0.25]
[1727109225823,0.3628,63331.0,63330.0,0.001]
[1727109226023,0.42990051,63331.0,63330.0,0.001]
[1727109226725,0.3628,63331.0,63330.0,0.001]
[1727109227325,0.078949,63329.0,63327.0,0.001]
[1727109227625,0.3608,63331.0,63327.0,0.001]
[1727109227626,0.078947,63330.0,63327.0,0.001]
[1727109228224,0.3618,63331.0,63327.0,0.001]
[1727109228620,0.3618,63331.0,63326.0,0.328952]
[1727109228921,0.3608,63331.0,63330.0,0.001]
[1727109229524,0.3608,63331.0,63327.0,0.001]
[1727109229829,0.3608,63331.0,63327.0,0.002]
[1727109230226,0.3608,63331.0,63327.0,0.04932932]
[1727109230430,0.3608,63331.0,63330.0,0.001]
[1727109230630,0.3618,63331.0,63330.0,0.001]
[1727109231538,0.3608,63331.0,63330.0,0.001]
[1727109231834,0.3618,63331.0,63330.0,0.002]
[1727109232033,0.3618,63331.0,63330.0,0.001]
[1727109232438,0.3618,63331.0,63330.0,0.161]
[1727109232932,0.3618,63331.0,63330.0,0.162]
[1727109234433,0.440746,63331.0,63330.0,0.002]
[1727109234627,0.519692,63331.0,63330.0,0.002]
[1727109236135,0.440746,63331.0,63330.0,0.002]
[1727109239536,0.440746,63331.0,63330.0,0.080947]
[1727109239537,0.3618,63331.0,63330.0,0.080947]
[1727109240335,0.001,63331.0,63330.0,0.080947]
[1727109240750,0.001,63331.0,63330.0,0.240947]
[1727109241132,0.001,63331.0,63330.0,1.240947]
[1727109241331,0.001,63331.0,63330.0,1.239947]
[1727109241642,0.440746,63331.0,63330.0,0.001]
[1727109241830,0.078952,63327.0,63323.0,0.04716343]
[1727109242032,0.078949,63329.0,63323.0,0.078956]
[1727109242229,0.07895,63328.0,63322.0,0.04716343]
[1727109242543,0.078952,63326.0,63322.0,0.04716343]
[1727109242744,0.3608,63325.0,63322.0,0.04716343]
[1727109242941,0.3608,63325.0,63321.0,0.16]
[1727109243240,0.3608,63325.0,63321.0,0.20716343]
[1727109243439,0.3608,63325.0,63323.0,0.004]
[1727109244335,0.3608,63325.0,63323.0,0.05116343]
[1727109244543,0.3608,63325.0,63323.0,0.04716343]
[1727109245239,0.3608,63325.0,63321.0,0.16]
[1727109245240,0.0769036,63324.0,63321.0,0.16]
[1727109245435,0.02559845,63323.0,63321.0,0.16]
[1727109245640,0.02559845,63322.0,63321.0,0.16]
[1727109245948,0.02559845,63324.0,63321.0,0.16]
[1727109246153,0.0933722,63323.0,63321.0,0.16]
[1727109246340,0.0933722,63323.0,63322.0,0.078957]
[1727109246642,0.02559845,63323.0,63321.0,0.161]
[1727109246838,0.11898752,63322.0,63321.0,0.161]
[1727109247036,0.10455545,63322.0,63321.0,0.001]
[1727109247240,1.09935845,63322.0,63305.0,0.0595]
[1727109247441,0.10960087,63324.0,63305.0,0.0595]
[1727109247442,0.0933928,63309.0,63305.0,0.0595]
[1727109247946,0.3608,63311.0,63305.0,0.07255044]
[1727109247947,0.0933928,63307.0,63305.0,0.07255044]
[1727109248248,0.02559845,63306.0,63304.0,1.16084]
[1727109248452,0.0933928,63306.0,63305.0,0.16]
[1727109248746,0.02559845,63306.0,63305.0,0.16]
[1727109249046,0.02559845,63306.0,63305.0,0.164]
[1727109249447,0.0933928,63308.0,63305.0,0.164]
[1727109249745,0.0933928,63308.0,63305.0,0.16]
[1727109249943,0.0933928,63308.0,63305.0,0.178]
[1727109250144,0.02559845,63307.0,63305.0,0.178]
[1727109250448,0.07776974,63306.0,63305.0,0.177]
[1727109250745,0.46975827,63317.0,63311.0,0.07897]